[Event "Early-Titled-Tuesday-Blitz-November-28-2023"]
[Site "Chess.com"]
[Date "2023.11.28"]
[Round "5"]
[White "NovozhilovSemen"]
[Black "MasterKroket"]
[Result "1-0"]
[WhiteElo "2724"]
[BlackElo "2498"]
[TimeControl "180+1"]
[EndTime "8:56:37 PST"]
[Termination "NovozhilovSemen won by resignation"]

1. d4 {[%clk 0:03:00.9]} 1... Nf6 {[%clk 0:02:58.9]} 2. Nf3 {[%clk 0:03:00.6]}
2... g6 {[%clk 0:02:59.3]} 3. Nc3 {[%clk 0:03:00.7]} 3... Bg7 {[%clk 0:02:59.9]}
4. e4 {[%clk 0:03:01.1]} 4... d6 {[%clk 0:02:58.8]} 5. Be3 {[%clk 0:03:01.6]}
5... c6 {[%clk 0:02:57.1]} 6. Qd2 {[%clk 0:03:01.4]} 6... Nbd7 {[%clk
0:02:56.7]} 7. Bd3 {[%clk 0:03:01.6]} 7... Qc7 {[%clk 0:02:53.7]} 8. Bh6 {[%clk
0:03:01.6]} 8... Bxh6 {[%clk 0:02:51.2]} 9. Qxh6 {[%clk 0:03:02.5]} 9... b5
{[%clk 0:02:50.8]} 10. a3 {[%clk 0:03:01.3]} 10... a6 {[%clk 0:02:49.2]} 11. O-O
{[%clk 0:03:01.1]} 11... Bb7 {[%clk 0:02:49.4]} 12. Rfe1 {[%clk 0:03:00.8]}
12... e5 {[%clk 0:02:36.3]} 13. dxe5 {[%clk 0:02:58.5]} 13... dxe5 {[%clk
0:02:33.8]} 14. a4 {[%clk 0:02:57.3]} 14... b4 {[%clk 0:02:33.2]} 15. Nd1 {[%clk
0:02:57.4]} 15... Qd6 {[%clk 0:02:25.2]} 16. Ne3 {[%clk 0:02:56.3]} 16... Qf8
{[%clk 0:02:22.6]} 17. Qh3 {[%clk 0:02:56]} 17... Qe7 {[%clk 0:02:21.2]} 18.
Rad1 {[%clk 0:02:55.3]} 18... O-O {[%clk 0:02:20.6]} 19. Qh6 {[%clk 0:02:49.2]}
19... Rfe8 {[%clk 0:02:11.6]} 20. Nc4 {[%clk 0:02:47.7]} 20... Ng4 {[%clk
0:02:05.7]} 21. Qh3 {[%clk 0:02:44.9]} 21... Ndf6 {[%clk 0:01:59.4]} 22. Qg3
{[%clk 0:02:40.9]} 22... Bc8 {[%clk 0:01:42.4]} 23. h3 {[%clk 0:02:40.2]} 23...
Nh5 {[%clk 0:01:42.6]} 24. Qh4 {[%clk 0:02:35.7]} 24... Qxh4 {[%clk 0:01:39.5]}
25. Nxh4 {[%clk 0:02:36.6]} 25... Ngf6 {[%clk 0:01:30.7]} 26. Nf3 {[%clk
0:02:36]} 26... Nd7 {[%clk 0:01:23.5]} 27. Nd6 {[%clk 0:02:32.7]} 27... Re7
{[%clk 0:01:13.3]} 28. Bc4 {[%clk 0:02:32.8]} 28... Nf4 {[%clk 0:01:02.4]} 29.
Nxf7 {[%clk 0:02:16.6]} 29... Kg7 {[%clk 0:00:46.7]} 30. Nd6 {[%clk 0:02:04.2]}
30... a5 {[%clk 0:00:46.7]} 31. Nxc8 {[%clk 0:01:56.3]} 31... Rxc8 {[%clk
0:00:46.4]} 32. g3 {[%clk 0:01:56.6]} 32... Nxh3+ {[%clk 0:00:41.6]} 33. Kg2
{[%clk 0:01:53.7]} 33... Nb6 {[%clk 0:00:33.8]} 34. Bb3 {[%clk 0:01:47.7]} 34...
c5 {[%clk 0:00:30]} 35. Rd6 {[%clk 0:01:46.1]} 35... c4 {[%clk 0:00:28.9]} 36.
Rxb6 {[%clk 0:01:42.2]} 36... cxb3 {[%clk 0:00:29.4]} 37. cxb3 {[%clk
0:01:42.8]} 37... Rf7 {[%clk 0:00:29.6]} 38. Nxe5 {[%clk 0:01:38.1]} 38... Rxf2+
{[%clk 0:00:24.5]} 39. Kxh3 {[%clk 0:01:37.9]} 39... Rcc2 {[%clk 0:00:23.2]} 40.
Rb7+ {[%clk 0:01:37.8]} 40... Kh6 {[%clk 0:00:19.2]} 41. Ng4+ {[%clk 0:01:37.6]}
41... Kg5 {[%clk 0:00:16.1]} 42. Rb5+ {[%clk 0:01:37]} 42... Rf5 {[%clk
0:00:15.4]} 43. exf5 {[%clk 0:01:37.6]} 43... gxf5 {[%clk 0:00:16]} 44. Ne3
{[%clk 0:01:37.9]} 44... Rxb2 {[%clk 0:00:16.3]} 45. Rxf5+ {[%clk 0:01:37.5]}
45... Kg6 {[%clk 0:00:17.1]} 1-0

[Event "Early-Titled-Tuesday-Blitz-November-28-2023"]
[Site "Chess.com"]
[Date "2023.11.28"]
[Round "5"]
[White "tusplingher"]
[Black "Abund"]
[Result "1/2-1/2"]
[WhiteElo "2514"]
[BlackElo "2770"]
[TimeControl "180+1"]
[EndTime "8:56:40 PST"]
[Termination "Game drawn by repetition"]

1. e4 {[%clk 0:03:00.9]} 1... e5 {[%clk 0:03:00.1]} 2. Nf3 {[%clk 0:03:00.4]}
2... Nc6 {[%clk 0:03:00.6]} 3. Nc3 {[%clk 0:02:57.8]} 3... Nf6 {[%clk
0:03:00.7]} 4. d4 {[%clk 0:02:56.6]} 4... exd4 {[%clk 0:03:00.9]} 5. Nxd4 {[%clk
0:02:57.3]} 5... Bb4 {[%clk 0:03:01.4]} 6. Nxc6 {[%clk 0:02:57]} 6... bxc6
{[%clk 0:03:02.3]} 7. Bd3 {[%clk 0:02:56.2]} 7... O-O {[%clk 0:03:02.7]} 8. O-O
{[%clk 0:02:54.4]} 8... d5 {[%clk 0:03:03.2]} 9. Bd2 {[%clk 0:02:54.1]} 9...
Bxc3 {[%clk 0:02:56.5]} 10. Bxc3 {[%clk 0:02:54.3]} 10... dxe4 {[%clk 0:02:53]}
11. Bxf6 {[%clk 0:02:53]} 11... Qxf6 {[%clk 0:02:52.7]} 12. Bxe4 {[%clk
0:02:53.2]} 12... Bf5 {[%clk 0:02:45.2]} 13. Bxf5 {[%clk 0:02:37.2]} 13... Qxf5
{[%clk 0:02:45]} 14. Qd3 {[%clk 0:02:35.1]} 14... Qf6 {[%clk 0:02:34.5]} 15. c3
{[%clk 0:02:21.2]} 15... c5 {[%clk 0:02:01.1]} 16. Qc4 {[%clk 0:02:15.1]} 16...
Qb6 {[%clk 0:01:55.4]} 17. b3 {[%clk 0:01:49.7]} 17... Rad8 {[%clk 0:01:54.4]}
18. Rad1 {[%clk 0:01:47.6]} 18... Rd6 {[%clk 0:01:46.7]} 19. Rxd6 {[%clk
0:01:43.8]} 19... cxd6 {[%clk 0:01:47]} 20. Rd1 {[%clk 0:01:40.7]} 20... Re8
{[%clk 0:01:43.4]} 21. h3 {[%clk 0:01:39.1]} 21... h6 {[%clk 0:01:43.3]} 22. Qd5
{[%clk 0:01:12.2]} 22... Re6 {[%clk 0:01:41.1]} 23. c4 {[%clk 0:01:02.5]} 23...
Qa5 {[%clk 0:01:25.1]} 24. Qd2 {[%clk 0:01:01.5]} 24... Qa6 {[%clk 0:01:22]} 25.
Re1 {[%clk 0:00:50.3]} 25... Rxe1+ {[%clk 0:01:06.7]} 26. Qxe1 {[%clk
0:00:50.3]} 26... Qxa2 {[%clk 0:01:03.3]} 27. Qe8+ {[%clk 0:00:49.9]} 27... Kh7
{[%clk 0:01:04]} 28. Qxf7 {[%clk 0:00:50.3]} 28... Qxb3 {[%clk 0:01:00.2]} 29.
Qf5+ {[%clk 0:00:49.1]} 29... Kg8 {[%clk 0:00:59.6]} 30. Qe6+ {[%clk 0:00:47.6]}
30... Kh8 {[%clk 0:00:57.6]} 31. Qe8+ {[%clk 0:00:46.9]} 31... Kh7 {[%clk
0:00:57.8]} 32. Qe4+ {[%clk 0:00:46.7]} 32... Kg8 {[%clk 0:00:58.3]} 33. Qe8+
{[%clk 0:00:39.2]} 33... Kh7 {[%clk 0:00:57.9]} 34. Qe4+ {[%clk 0:00:37.8]}
34... Kh8 {[%clk 0:00:57.5]} 35. Qe8+ {[%clk 0:00:33.3]} 35... Kh7 {[%clk
0:00:57.7]} 1/2-1/2

[Event "Early-Titled-Tuesday-Blitz-November-28-2023"]
[Site "Chess.com"]
[Date "2023.11.28"]
[Round "5"]
[White "Aisen1011"]
[Black "Sofia_Blokhin"]
[Result "1-0"]
[WhiteElo "2429"]
[BlackElo "2255"]
[TimeControl "180+1"]
[EndTime "8:56:40 PST"]
[Termination "Aisen1011 won by resignation"]

1. d4 {[%clk 0:02:59.4]} 1... f5 {[%clk 0:02:58.3]} 2. Nf3 {[%clk 0:02:59.1]}
2... Nf6 {[%clk 0:02:57.1]} 3. g3 {[%clk 0:02:59.5]} 3... g6 {[%clk 0:02:57.4]}
4. Bg2 {[%clk 0:02:59.6]} 4... Bg7 {[%clk 0:02:57.6]} 5. O-O {[%clk 0:03:00]}
5... O-O {[%clk 0:02:57.4]} 6. c4 {[%clk 0:03:00.4]} 6... d6 {[%clk 0:02:57.6]}
7. Nc3 {[%clk 0:03:00.7]} 7... Nc6 {[%clk 0:02:57.6]} 8. d5 {[%clk 0:03:01.1]}
8... Na5 {[%clk 0:02:57.2]} 9. Qd3 {[%clk 0:03:00.6]} 9... c5 {[%clk 0:02:46.5]}
10. Bd2 {[%clk 0:02:53.8]} 10... e5 {[%clk 0:02:35.5]} 11. dxe6 {[%clk
0:02:51.9]} 11... Bxe6 {[%clk 0:02:35.1]} 12. b3 {[%clk 0:02:42]} 12... Ne4
{[%clk 0:02:21.4]} 13. Ng5 {[%clk 0:02:21.1]} 13... Nxg5 {[%clk 0:02:05.7]} 14.
Nd5 {[%clk 0:02:18.7]} 14... Bxd5 {[%clk 0:01:59]} 15. cxd5 {[%clk 0:02:02]}
15... Bxa1 {[%clk 0:01:48.9]} 16. Rxa1 {[%clk 0:02:01.2]} 16... Nf7 {[%clk
0:01:38.7]} 17. f4 {[%clk 0:01:59]} 17... c4 {[%clk 0:01:30.3]} 18. Qc3 {[%clk
0:01:56.6]} 18... b6 {[%clk 0:01:24.9]} 19. Bc1 {[%clk 0:01:54.8]} 19... Re8
{[%clk 0:00:32.9]} 20. Bb2 {[%clk 0:01:53.1]} 20... Ne5 {[%clk 0:00:29.4]} 21.
fxe5 {[%clk 0:01:45.3]} 21... dxe5 {[%clk 0:00:29.4]} 22. b4 {[%clk 0:01:36.4]}
22... Nb7 {[%clk 0:00:25.2]} 23. d6 {[%clk 0:01:35.2]} 23... Nxd6 {[%clk
0:00:20.1]} 24. Bd5+ {[%clk 0:01:33.9]} 24... Kg7 {[%clk 0:00:19.6]} 25. Qe3
{[%clk 0:01:22.4]} 25... Qf6 {[%clk 0:00:17.1]} 26. Bxa8 {[%clk 0:01:21.4]}
26... Rxa8 {[%clk 0:00:16.5]} 27. Bxe5 {[%clk 0:01:21.3]} 27... Re8 {[%clk
0:00:11.4]} 28. Bxf6+ {[%clk 0:01:21.2]} 28... Kxf6 {[%clk 0:00:11.3]} 29. Qd4+
{[%clk 0:01:21]} 29... Ke7 {[%clk 0:00:10.3]} 30. Rd1 {[%clk 0:01:20.7]} 30...
Rd8 {[%clk 0:00:09.7]} 31. Qe5+ {[%clk 0:01:20.4]} 1-0

[Event "Early-Titled-Tuesday-Blitz-November-28-2023"]
[Site "Chess.com"]
[Date "2023.11.28"]
[Round "5"]
[White "Orishuas"]
[Black "ideika"]
[Result "0-1"]
[WhiteElo "2288"]
[BlackElo "2171"]
[TimeControl "180+1"]
[EndTime "8:56:45 PST"]
[Termination "ideika won on time"]

1. e4 {[%clk 0:03:00.9]} 1... c5 {[%clk 0:02:59.2]} 2. d4 {[%clk 0:03:00]} 2...
cxd4 {[%clk 0:02:59]} 3. c3 {[%clk 0:03:00.2]} 3... dxc3 {[%clk 0:02:59]} 4.
Nxc3 {[%clk 0:02:59.6]} 4... Nc6 {[%clk 0:02:58.1]} 5. Nf3 {[%clk 0:02:58.6]}
5... e6 {[%clk 0:02:57.9]} 6. Bc4 {[%clk 0:02:58]} 6... a6 {[%clk 0:02:58.2]} 7.
O-O {[%clk 0:02:55.4]} 7... b5 {[%clk 0:02:58.1]} 8. Bb3 {[%clk 0:02:54]} 8...
Bb7 {[%clk 0:02:58.6]} 9. Qe2 {[%clk 0:02:51.8]} 9... Na5 {[%clk 0:02:57]} 10.
Rd1 {[%clk 0:02:41.9]} 10... Nxb3 {[%clk 0:02:54.8]} 11. axb3 {[%clk 0:02:41.2]}
11... Nf6 {[%clk 0:02:53.2]} 12. Bg5 {[%clk 0:02:10.3]} 12... Be7 {[%clk
0:02:51.1]} 13. Rac1 {[%clk 0:02:06.1]} 13... O-O {[%clk 0:02:43.8]} 14. Ne5
{[%clk 0:02:02.2]} 14... d6 {[%clk 0:02:34.6]} 15. Nf3 {[%clk 0:02:01.1]} 15...
b4 {[%clk 0:02:20.9]} 16. Bxf6 {[%clk 0:01:21.4]} 16... Bxf6 {[%clk 0:02:19.1]}
17. Na4 {[%clk 0:01:21.8]} 17... Qe7 {[%clk 0:02:12.6]} 18. Qc4 {[%clk
0:01:16.7]} 18... a5 {[%clk 0:02:05.3]} 19. Qb5 {[%clk 0:01:15.3]} 19... Bxe4
{[%clk 0:01:57.8]} 20. Nd4 {[%clk 0:01:00.1]} 20... Bxd4 {[%clk 0:01:46.9]} 21.
Rxd4 {[%clk 0:00:59.5]} 21... d5 {[%clk 0:01:40.3]} 22. f3 {[%clk 0:00:56.6]}
22... Bxf3 {[%clk 0:01:35]} 23. Rf1 {[%clk 0:00:33.5]} 23... Be4 {[%clk
0:01:32]} 24. Nc5 {[%clk 0:00:33.6]} 24... Rfb8 {[%clk 0:01:24.8]} 25. Qc6
{[%clk 0:00:03.8]} 25... Rc8 {[%clk 0:01:20.8]} 26. Qd7 {[%clk 0:00:01.6]} 26...
Qxc5 {[%clk 0:01:06.4]} 27. Qxf7+ {[%clk 0:00:02.5]} 27... Kh8 {[%clk 0:01:06]}
0-1

[Event "Early-Titled-Tuesday-Blitz-November-28-2023"]
[Site "Chess.com"]
[Date "2023.11.28"]
[Round "5"]
[White "Sulthankan"]
[Black "Elbebiber"]
[Result "1-0"]
[WhiteElo "2349"]
[BlackElo "2115"]
[TimeControl "180+1"]
[EndTime "8:56:47 PST"]
[Termination "Sulthankan won on time"]

1. d4 {[%clk 0:03:00.9]} 1... Nf6 {[%clk 0:02:58]} 2. c4 {[%clk 0:03:00.9]} 2...
e6 {[%clk 0:02:57]} 3. Nf3 {[%clk 0:03:01.3]} 3... Bb4+ {[%clk 0:02:54]} 4. Nbd2
{[%clk 0:02:59.9]} 4... b6 {[%clk 0:02:26.1]} 5. a3 {[%clk 0:02:58.8]} 5...
Bxd2+ {[%clk 0:02:25.3]} 6. Qxd2 {[%clk 0:02:59.7]} 6... Bb7 {[%clk 0:02:24.4]}
7. e3 {[%clk 0:02:52.7]} 7... Ne4 {[%clk 0:02:17.8]} 8. Qc2 {[%clk 0:02:51.7]}
8... f5 {[%clk 0:01:54.4]} 9. Be2 {[%clk 0:02:47.9]} 9... d6 {[%clk 0:01:48.5]}
10. b4 {[%clk 0:02:47.6]} 10... Nd7 {[%clk 0:01:43.3]} 11. Bb2 {[%clk 0:02:47]}
11... O-O {[%clk 0:01:35.9]} 12. O-O {[%clk 0:02:46.7]} 12... a5 {[%clk
0:01:29.4]} 13. c5 {[%clk 0:02:11.5]} 13... bxc5 {[%clk 0:01:16.3]} 14. bxc5
{[%clk 0:02:09.8]} 14... dxc5 {[%clk 0:01:11.4]} 15. dxc5 {[%clk 0:02:03.8]}
15... Bd5 {[%clk 0:01:01.6]} 16. c6 {[%clk 0:01:46.5]} 16... Nb6 {[%clk
0:00:51.9]} 17. Rfd1 {[%clk 0:01:33.7]} 17... Qe8 {[%clk 0:00:42.6]} 18. Be5
{[%clk 0:01:24.2]} 18... Qxc6 {[%clk 0:00:32.7]} 19. Qxc6 {[%clk 0:01:22.6]}
19... Bxc6 {[%clk 0:00:33]} 20. Bxc7 {[%clk 0:01:22.9]} 20... Nd5 {[%clk
0:00:30]} 21. Be5 {[%clk 0:01:18.2]} 21... Ba4 {[%clk 0:00:21.9]} 22. Rdc1
{[%clk 0:01:14.4]} 22... Rac8 {[%clk 0:00:20.5]} 23. Nd4 {[%clk 0:01:14.8]}
23... Kf7 {[%clk 0:00:17.6]} 24. Ba6 {[%clk 0:01:13.6]} 24... Rxc1+ {[%clk
0:00:14.7]} 25. Rxc1 {[%clk 0:01:14.5]} 25... Rd8 {[%clk 0:00:13.3]} 26. f3
{[%clk 0:01:05.2]} 26... Nef6 {[%clk 0:00:06.3]} 27. Rb1 {[%clk 0:01:01.5]}
27... Rd7 {[%clk 0:00:05.3]} 28. Bc8 {[%clk 0:01:01.7]} 28... Re7 {[%clk
0:00:01.1]} 29. Bd6 {[%clk 0:01:02.2]} 1-0

[Event "Early-Titled-Tuesday-Blitz-November-28-2023"]
[Site "Chess.com"]
[Date "2023.11.28"]
[Round "5"]
[White "DanylaBagrov"]
[Black "GrumbleBruno"]
[Result "1-0"]
[WhiteElo "2579"]
[BlackElo "2413"]
[TimeControl "180+1"]
[EndTime "8:56:48 PST"]
[Termination "DanylaBagrov won on time"]

1. e4 {[%clk 0:03:00.9]} 1... e5 {[%clk 0:02:59.9]} 2. Nf3 {[%clk 0:03:00.4]}
2... d5 {[%clk 0:03:00.1]} 3. exd5 {[%clk 0:02:50.2]} 3... e4 {[%clk 0:03:00]}
4. Qe2 {[%clk 0:02:48.9]} 4... Nf6 {[%clk 0:03:00]} 5. Nc3 {[%clk 0:02:43.1]}
5... Be7 {[%clk 0:02:59.4]} 6. Nxe4 {[%clk 0:02:37.2]} 6... Nxd5 {[%clk
0:02:59.5]} 7. d3 {[%clk 0:02:27.9]} 7... O-O {[%clk 0:02:56.5]} 8. Qd1 {[%clk
0:02:16.7]} 8... f5 {[%clk 0:02:51.9]} 9. Nc3 {[%clk 0:02:14.5]} 9... Nxc3
{[%clk 0:02:48.1]} 10. bxc3 {[%clk 0:02:15.4]} 10... Bf6 {[%clk 0:02:47.6]} 11.
d4 {[%clk 0:02:12.3]} 11... Re8+ {[%clk 0:02:29.9]} 12. Be2 {[%clk 0:02:11.5]}
12... Qe7 {[%clk 0:02:29.8]} 13. Be3 {[%clk 0:02:02.4]} 13... Kh8 {[%clk
0:02:19.5]} 14. Qd2 {[%clk 0:01:52]} 14... Bd7 {[%clk 0:02:07.8]} 15. h4 {[%clk
0:01:33]} 15... Nc6 {[%clk 0:02:00.8]} 16. Bg5 {[%clk 0:01:15.3]} 16... Rad8
{[%clk 0:01:32.9]} 17. Kf1 {[%clk 0:01:04.7]} 17... b6 {[%clk 0:01:07.3]} 18.
Bd3 {[%clk 0:01:00.2]} 18... Na5 {[%clk 0:00:45.8]} 19. Qf4 {[%clk 0:00:58.2]}
19... Qa3 {[%clk 0:00:18.1]} 20. Bxf6 {[%clk 0:00:53.9]} 20... gxf6 {[%clk
0:00:18.3]} 21. Qh6 {[%clk 0:00:49.2]} 21... Rf8 {[%clk 0:00:08.2]} 22. Re1
{[%clk 0:00:48.9]} 22... Qxc3 {[%clk 0:00:07]} 23. Re7 {[%clk 0:00:46.7]} 1-0

[Event "Early-Titled-Tuesday-Blitz-November-28-2023"]
[Site "Chess.com"]
[Date "2023.11.28"]
[Round "5"]
[White "JSPrepz"]
[Black "vladgoncharov"]
[Result "1-0"]
[WhiteElo "2839"]
[BlackElo "2624"]
[TimeControl "180+1"]
[EndTime "8:56:51 PST"]
[Termination "JSPrepz won on time"]

1. e4 {[%clk 0:03:00.9]} 1... e6 {[%clk 0:02:52.5]} 2. d4 {[%clk 0:03:00.6]}
2... d5 {[%clk 0:02:51.7]} 3. e5 {[%clk 0:03:00.7]} 3... c5 {[%clk 0:02:51.5]}
4. c3 {[%clk 0:03:01.2]} 4... Nc6 {[%clk 0:02:51.5]} 5. Nf3 {[%clk 0:03:01.8]}
5... Nge7 {[%clk 0:02:51]} 6. dxc5 {[%clk 0:02:53.9]} 6... Ng6 {[%clk
0:02:49.8]} 7. Bb5 {[%clk 0:02:53]} 7... Bxc5 {[%clk 0:02:47.5]} 8. O-O {[%clk
0:02:53.2]} 8... O-O {[%clk 0:02:46.3]} 9. Qe2 {[%clk 0:02:53.1]} 9... Bd7
{[%clk 0:02:23]} 10. Bd3 {[%clk 0:02:52.2]} 10... a6 {[%clk 0:02:18]} 11. Re1
{[%clk 0:02:49.6]} 11... b5 {[%clk 0:02:15]} 12. Bg5 {[%clk 0:02:45.5]} 12...
Be7 {[%clk 0:02:12.9]} 13. Bxe7 {[%clk 0:02:35.5]} 13... Qxe7 {[%clk 0:02:10.2]}
14. Bxg6 {[%clk 0:02:35.7]} 14... fxg6 {[%clk 0:02:07.9]} 15. Nbd2 {[%clk
0:02:36.6]} 15... g5 {[%clk 0:02:00.7]} 16. Qe3 {[%clk 0:02:36.3]} 16... h6
{[%clk 0:02:00.2]} 17. h3 {[%clk 0:02:34.8]} 17... Qf7 {[%clk 0:01:39.5]} 18.
Nb3 {[%clk 0:02:34.2]} 18... Ne7 {[%clk 0:01:38.8]} 19. Nc5 {[%clk 0:02:33.6]}
19... Nf5 {[%clk 0:01:38.5]} 20. Qd3 {[%clk 0:02:32.8]} 20... Bc6 {[%clk
0:01:36.3]} 21. Re2 {[%clk 0:02:30.7]} 21... b4 {[%clk 0:01:32.6]} 22. Nxa6
{[%clk 0:02:17.2]} 22... bxc3 {[%clk 0:01:30]} 23. Nb4 {[%clk 0:02:09.9]} 23...
cxb2 {[%clk 0:01:25.8]} 24. Rxb2 {[%clk 0:02:10.8]} 24... Bb7 {[%clk 0:01:24.4]}
25. a4 {[%clk 0:02:10.7]} 25... Ra5 {[%clk 0:01:15.8]} 26. Nd4 {[%clk
0:02:07.4]} 26... Nxd4 {[%clk 0:01:07.9]} 27. Qxd4 {[%clk 0:02:08.3]} 27... Rfa8
{[%clk 0:01:07.2]} 28. Nd3 {[%clk 0:02:06.9]} 28... Bc6 {[%clk 0:01:04.6]} 29.
Nc5 {[%clk 0:01:58.9]} 29... Be8 {[%clk 0:00:38.3]} 30. Rb7 {[%clk 0:01:56]}
30... Qf5 {[%clk 0:00:26.3]} 31. g4 {[%clk 0:01:48.7]} 31... Qg6 {[%clk
0:00:22.4]} 32. Rab1 {[%clk 0:01:41.2]} 32... Bxa4 {[%clk 0:00:17.8]} 33. R1b6
{[%clk 0:01:36]} 33... Qe8 {[%clk 0:00:12.3]} 34. Nxe6 {[%clk 0:01:30.5]} 34...
Bd7 {[%clk 0:00:10.4]} 35. Nxg7 {[%clk 0:01:28]} 35... Qc8 {[%clk 0:00:01.4]}
36. Nf5 {[%clk 0:01:15.4]} 1-0

[Event "Early-Titled-Tuesday-Blitz-November-28-2023"]
[Site "Chess.com"]
[Date "2023.11.28"]
[Round "5"]
[White "Grischuk"]
[Black "Sadykov_Ramil"]
[Result "1-0"]
[WhiteElo "3050"]
[BlackElo "2702"]
[TimeControl "180+1"]
[EndTime "8:56:52 PST"]
[Termination "Grischuk won by resignation"]

1. d4 {[%clk 0:03:00.9]} 1... d5 {[%clk 0:02:55.8]} 2. Nf3 {[%clk 0:02:58.5]}
2... Nf6 {[%clk 0:02:55.2]} 3. Bg5 {[%clk 0:02:58.4]} 3... Ne4 {[%clk
0:02:53.7]} 4. Bh4 {[%clk 0:02:58.2]} 4... Nd7 {[%clk 0:02:46]} 5. e3 {[%clk
0:02:56.7]} 5... Ndf6 {[%clk 0:02:43.8]} 6. c4 {[%clk 0:02:46.2]} 6... e6 {[%clk
0:02:38.6]} 7. Nc3 {[%clk 0:02:44.8]} 7... Be7 {[%clk 0:02:34.6]} 8. Bd3 {[%clk
0:02:43.1]} 8... Nxc3 {[%clk 0:02:22]} 9. bxc3 {[%clk 0:02:42.8]} 9... dxc4
{[%clk 0:02:21.3]} 10. Bxc4 {[%clk 0:02:43.7]} 10... O-O {[%clk 0:02:15.5]} 11.
Bd3 {[%clk 0:02:33.8]} 11... c5 {[%clk 0:02:14]} 12. O-O {[%clk 0:02:33.3]}
12... b6 {[%clk 0:02:02.7]} 13. a4 {[%clk 0:02:25.5]} 13... Bb7 {[%clk
0:01:55.8]} 14. a5 {[%clk 0:02:24.6]} 14... h6 {[%clk 0:01:21.6]} 15. Qb3 {[%clk
0:01:58.1]} 15... Bxf3 {[%clk 0:01:09.3]} 16. gxf3 {[%clk 0:01:58.1]} 16... Nd5
{[%clk 0:01:04.3]} 17. Bg3 {[%clk 0:01:57]} 17... Bd6 {[%clk 0:00:58.2]} 18.
axb6 {[%clk 0:01:38.9]} 18... Nxb6 {[%clk 0:00:35.4]} 19. Be4 {[%clk 0:01:25.3]}
19... c4 {[%clk 0:00:21.9]} 20. Qb5 {[%clk 0:01:15.6]} 20... Nd5 {[%clk
0:00:10.6]} 21. Bxd5 {[%clk 0:01:07.5]} 21... exd5 {[%clk 0:00:11.5]} 22. Rfb1
{[%clk 0:00:46]} 22... Bxg3 {[%clk 0:00:04.3]} 23. hxg3 {[%clk 0:00:45.9]} 23...
Qd7 {[%clk 0:00:04.1]} 24. Qxd7 {[%clk 0:00:45.2]} 1-0

[Event "Early-Titled-Tuesday-Blitz-November-28-2023"]
[Site "Chess.com"]
[Date "2023.11.28"]
[Round "5"]
[White "campochess"]
[Black "Shivananda1964"]
[Result "0-1"]
[WhiteElo "2231"]
[BlackElo "2406"]
[TimeControl "180+1"]
[EndTime "8:56:55 PST"]
[Termination "Shivananda1964 won by resignation"]

1. d4 {[%clk 0:03:00]} 1... Nf6 {[%clk 0:02:56.1]} 2. Bg5 {[%clk 0:02:59.8]}
2... d5 {[%clk 0:02:55.3]} 3. Nd2 {[%clk 0:02:58.3]} 3... e6 {[%clk 0:02:54.3]}
4. e3 {[%clk 0:02:58.2]} 4... c5 {[%clk 0:02:54.1]} 5. c3 {[%clk 0:02:56.6]}
5... Nc6 {[%clk 0:02:53.9]} 6. Bd3 {[%clk 0:02:56.5]} 6... Be7 {[%clk
0:02:53.7]} 7. Ngf3 {[%clk 0:02:56.4]} 7... Nd7 {[%clk 0:02:53.3]} 8. Bf4 {[%clk
0:02:54.7]} 8... O-O {[%clk 0:02:49.1]} 9. O-O {[%clk 0:02:51.7]} 9... g6 {[%clk
0:02:45.4]} 10. a3 {[%clk 0:02:48.6]} 10... Re8 {[%clk 0:02:43]} 11. b4 {[%clk
0:02:48.3]} 11... cxd4 {[%clk 0:02:33.5]} 12. cxd4 {[%clk 0:02:46.3]} 12... a5
{[%clk 0:02:32.4]} 13. b5 {[%clk 0:02:42.5]} 13... Na7 {[%clk 0:02:30.2]} 14.
Qb3 {[%clk 0:02:35.6]} 14... Nb6 {[%clk 0:02:18.9]} 15. Rfc1 {[%clk 0:02:34.1]}
15... a4 {[%clk 0:02:10.3]} 16. Qb1 {[%clk 0:02:31.8]} 16... Bd6 {[%clk
0:02:10.3]} 17. Bg5 {[%clk 0:02:29]} 17... f6 {[%clk 0:02:10]} 18. Bh4 {[%clk
0:02:28]} 18... Qe7 {[%clk 0:02:09.4]} 19. Bg3 {[%clk 0:02:27.6]} 19... Bd7
{[%clk 0:02:03.9]} 20. Qa2 {[%clk 0:02:24.8]} 20... Rac8 {[%clk 0:02:01.2]} 21.
e4 {[%clk 0:02:23.8]} 21... Bxb5 {[%clk 0:01:38.3]} 22. Bxb5 {[%clk 0:02:18.2]}
22... Nxb5 {[%clk 0:01:38.4]} 23. e5 {[%clk 0:02:15.9]} 23... Bxa3 {[%clk
0:01:30.8]} 24. exf6 {[%clk 0:02:14.9]} 24... Qxf6 {[%clk 0:01:30.9]} 25. Rxc8
{[%clk 0:02:10.7]} 25... Rxc8 {[%clk 0:01:29.7]} 26. Qb1 {[%clk 0:02:01.9]}
26... Rc1+ {[%clk 0:00:58.2]} 27. Qxc1 {[%clk 0:01:56.8]} 27... Bxc1 {[%clk
0:00:57.6]} 28. Rxc1 {[%clk 0:01:56.5]} 28... Nxd4 {[%clk 0:00:55.3]} 29. Be5
{[%clk 0:01:50.4]} 29... Ne2+ {[%clk 0:00:31.9]} 30. Kf1 {[%clk 0:01:49.3]}
30... Qxe5 {[%clk 0:00:30.2]} 31. Nxe5 {[%clk 0:01:47.4]} 31... Nxc1 {[%clk
0:00:30.8]} 32. Nb1 {[%clk 0:01:45.8]} 32... Nc4 {[%clk 0:00:29.1]} 33. Nxc4
{[%clk 0:01:33.4]} 33... dxc4 {[%clk 0:00:27.9]} 34. Na3 {[%clk 0:01:32.6]}
34... Nb3 {[%clk 0:00:21.5]} 35. Ke2 {[%clk 0:01:32.2]} 35... Nd4+ {[%clk
0:00:20.9]} 36. Kd2 {[%clk 0:01:30.9]} 36... b5 {[%clk 0:00:20.6]} 37. Kc3
{[%clk 0:01:29]} 37... e5 {[%clk 0:00:19.1]} 38. Kb4 {[%clk 0:01:26.9]} 38...
Kf7 {[%clk 0:00:17.8]} 39. Nb1 {[%clk 0:01:25.9]} 39... Ke6 {[%clk 0:00:17.3]}
40. Nc3 {[%clk 0:01:26]} 40... Kd6 {[%clk 0:00:16.7]} 41. Ne4+ {[%clk
0:01:24.5]} 41... Kc6 {[%clk 0:00:16.8]} 42. Nc3 {[%clk 0:01:23.8]} 42... Nc2+
{[%clk 0:00:16.4]} 43. Ka5 {[%clk 0:01:22]} 43... a3 {[%clk 0:00:16.8]} 44. Na2
{[%clk 0:01:21.4]} 44... b4 {[%clk 0:00:16.1]} 0-1